[Event "Early-Titled-Tuesday-Blitz-February-20-2024"]
[Site "Chess.com"]
[Date "2024.02.20"]
[Round "2"]
[White "Alenzer"]
[Black "poummba"]
[Result "1-0"]
[WhiteElo "2147"]
[BlackElo "2395"]
[TimeControl "180+1"]
[EndTime "8:19:42 PST"]
[Termination "Alenzer won on time"]

1. e4 {[%clk 0:02:58.7]} 1... c5 {[%clk 0:02:55.7]} 2. Nf3 {[%clk 0:02:58.1]}
2... d6 {[%clk 0:02:54.5]} 3. c3 {[%clk 0:02:58]} 3... Nf6 {[%clk 0:02:50.9]} 4.
h3 {[%clk 0:02:57.9]} 4... g6 {[%clk 0:02:47.1]} 5. Bd3 {[%clk 0:02:57.5]} 5...
Bg7 {[%clk 0:02:47.1]} 6. Bc2 {[%clk 0:02:57.4]} 6... O-O {[%clk 0:02:46.4]} 7.
O-O {[%clk 0:02:56.6]} 7... Nc6 {[%clk 0:02:43.1]} 8. d4 {[%clk 0:02:52.1]} 8...
e5 {[%clk 0:02:39.9]} 9. dxc5 {[%clk 0:02:46.7]} 9... dxc5 {[%clk 0:02:39.5]}
10. Qe2 {[%clk 0:02:46.6]} 10... Qc7 {[%clk 0:02:15.8]} 11. Na3 {[%clk
0:02:45.5]} 11... a6 {[%clk 0:02:15.3]} 12. Be3 {[%clk 0:02:41.4]} 12... b6
{[%clk 0:02:13.2]} 13. Rad1 {[%clk 0:02:34.5]} 13... Bb7 {[%clk 0:02:08.8]} 14.
Nc4 {[%clk 0:02:34.2]} 14... Rfe8 {[%clk 0:01:53.5]} 15. Nd6 {[%clk 0:02:33.1]}
15... Re7 {[%clk 0:01:24.7]} 16. Bb3 {[%clk 0:01:34.9]} 16... Na5 {[%clk
0:01:12.5]} 17. Nxb7 {[%clk 0:01:05.5]} 17... Nxb3 {[%clk 0:01:02.6]} 18. Nd6
{[%clk 0:00:52.2]} 18... Na5 {[%clk 0:00:56]} 19. b4 {[%clk 0:00:49.8]} 19...
cxb4 {[%clk 0:00:50.8]} 20. cxb4 {[%clk 0:00:49.9]} 20... Nb7 {[%clk 0:00:49.4]}
21. Nc4 {[%clk 0:00:41.5]} 21... b5 {[%clk 0:00:44.4]} 22. Nb6 {[%clk
0:00:38.3]} 22... Rae8 {[%clk 0:00:41.8]} 23. Nd5 {[%clk 0:00:33.6]} 23... Nxd5
{[%clk 0:00:39.4]} 24. exd5 {[%clk 0:00:33.6]} 24... Nd6 {[%clk 0:00:39.1]} 25.
Bc5 {[%clk 0:00:32.5]} 25... e4 {[%clk 0:00:35.9]} 26. Nd4 {[%clk 0:00:27.3]}
26... Bxd4 {[%clk 0:00:33.7]} 27. Rxd4 {[%clk 0:00:24.6]} 27... f5 {[%clk
0:00:33]} 28. Rc1 {[%clk 0:00:20]} 28... Qd7 {[%clk 0:00:32.1]} 29. Bxd6 {[%clk
0:00:17.2]} 29... Qxd6 {[%clk 0:00:31.8]} 30. Rc6 {[%clk 0:00:17.9]} 30... Qe5
{[%clk 0:00:31.9]} 31. Qd1 {[%clk 0:00:15.3]} 31... Rd7 {[%clk 0:00:28.8]} 32.
Rxa6 {[%clk 0:00:14.8]} 32... e3 {[%clk 0:00:27.9]} 33. fxe3 {[%clk 0:00:13.6]}
33... Qxe3+ {[%clk 0:00:28.8]} 34. Kh1 {[%clk 0:00:14]} 34... f4 {[%clk
0:00:27.2]} 35. d6 {[%clk 0:00:13]} 35... f3 {[%clk 0:00:26.2]} 36. gxf3 {[%clk
0:00:10.7]} 36... Rf8 {[%clk 0:00:25.7]} 37. Rd3 {[%clk 0:00:09.9]} 37... Qh6
{[%clk 0:00:24.8]} 38. Kg2 {[%clk 0:00:08.4]} 38... Qg5+ {[%clk 0:00:24.8]} 39.
Kf2 {[%clk 0:00:08]} 39... Qh4+ {[%clk 0:00:24.2]} 40. Kg2 {[%clk 0:00:08.4]}
40... Rf5 {[%clk 0:00:23.4]} 41. Ra8+ {[%clk 0:00:07.5]} 41... Kg7 {[%clk
0:00:23.7]} 42. Qa1+ {[%clk 0:00:07.1]} 42... Kh6 {[%clk 0:00:23.4]} 43. Qc1+
{[%clk 0:00:07.3]} 43... Rg5+ {[%clk 0:00:22.9]} 44. Kf1 {[%clk 0:00:06]} 44...
Qxh3+ {[%clk 0:00:23.4]} 45. Ke2 {[%clk 0:00:06.4]} 45... Qg2+ {[%clk
0:00:22.6]} 46. Ke1 {[%clk 0:00:04.8]} 46... Qg1+ {[%clk 0:00:21.5]} 47. Kd2
{[%clk 0:00:05.3]} 47... Qxc1+ {[%clk 0:00:20]} 48. Kxc1 {[%clk 0:00:06.2]}
48... Rg1+ {[%clk 0:00:20.1]} 49. Kb2 {[%clk 0:00:06.1]} 49... Rg2+ {[%clk
0:00:20.3]} 50. Kb3 {[%clk 0:00:06.3]} 50... Re2 {[%clk 0:00:17.3]} 51. Rc8
{[%clk 0:00:06.1]} 51... Re6 {[%clk 0:00:17.3]} 52. Rc6 {[%clk 0:00:06.2]} 52...
Kg5 {[%clk 0:00:16.8]} 53. a4 {[%clk 0:00:06.4]} 53... bxa4+ {[%clk 0:00:15.7]}
54. Kxa4 {[%clk 0:00:07.3]} 54... h5 {[%clk 0:00:15.7]} 55. b5 {[%clk
0:00:07.5]} 55... h4 {[%clk 0:00:16.3]} 56. b6 {[%clk 0:00:07.3]} 56... h3
{[%clk 0:00:16.5]} 57. Rc5+ {[%clk 0:00:07.6]} 57... Kf4 {[%clk 0:00:16.1]} 58.
Rc4+ {[%clk 0:00:08]} 58... Kg3 {[%clk 0:00:16.2]} 59. Rg4+ {[%clk 0:00:07.2]}
59... Kf2 {[%clk 0:00:15.9]} 60. Rh4 {[%clk 0:00:07.4]} 60... Kg3 {[%clk
0:00:15.7]} 61. Rg4+ {[%clk 0:00:07.2]} 61... Kf2 {[%clk 0:00:15.4]} 62. Rh4
{[%clk 0:00:07.7]} 62... Rdxd6 {[%clk 0:00:15.9]} 63. Rxd6 {[%clk 0:00:07.2]}
63... Rxd6 {[%clk 0:00:16.8]} 64. Rxh3 {[%clk 0:00:07.6]} 64... Rxb6 {[%clk
0:00:16.1]} 65. Ka5 {[%clk 0:00:07.7]} 65... Rf6 {[%clk 0:00:15]} 66. Rh6 {[%clk
0:00:06.7]} 66... Kxf3 {[%clk 0:00:14.8]} 67. Kb4 {[%clk 0:00:07.1]} 67... Re6
{[%clk 0:00:10.8]} 68. Kc4 {[%clk 0:00:05.7]} 68... Kf4 {[%clk 0:00:11.3]} 69.
Kd4 {[%clk 0:00:05.4]} 69... Kf5 {[%clk 0:00:11.9]} 70. Rh8 {[%clk 0:00:04.6]}
70... Re1 {[%clk 0:00:11.6]} 71. Rf8+ {[%clk 0:00:04.7]} 71... Kg4 {[%clk
0:00:11.6]} 72. Rg8 {[%clk 0:00:04.2]} 72... g5 {[%clk 0:00:12]} 73. Kd3 {[%clk
0:00:04.4]} 73... Kf4 {[%clk 0:00:11.8]} 74. Kd2 {[%clk 0:00:04.8]} 74... Re7
{[%clk 0:00:11.1]} 75. Kd3 {[%clk 0:00:04.8]} 75... g4 {[%clk 0:00:10.6]} 76.
Rf8+ {[%clk 0:00:05.4]} 76... Kg3 {[%clk 0:00:10.8]} 77. Rg8 {[%clk 0:00:05.6]}
77... Kf3 {[%clk 0:00:11]} 78. Rf8+ {[%clk 0:00:06]} 78... Kg2 {[%clk
0:00:11.2]} 79. Rg8 {[%clk 0:00:06.7]} 79... g3 {[%clk 0:00:11.5]} 80. Rg6
{[%clk 0:00:07.2]} 80... Kf2 {[%clk 0:00:10.4]} 81. Rf6+ {[%clk 0:00:07.7]}
81... Kg1 {[%clk 0:00:10.5]} 82. Rg6 {[%clk 0:00:07.4]} 82... g2 {[%clk
0:00:10.8]} 83. Kd2 {[%clk 0:00:08.3]} 83... Re5 {[%clk 0:00:03.1]} 84. Kd1
{[%clk 0:00:07.6]} 84... Kf2 {[%clk 0:00:02.7]} 85. Rf6+ {[%clk 0:00:07.2]}
85... Kg3 {[%clk 0:00:02.4]} 86. Rg6+ {[%clk 0:00:07.6]} 86... Kf3 {[%clk
0:00:02.7]} 87. Kd2 {[%clk 0:00:05.9]} 1-0

[Event "Early-Titled-Tuesday-Blitz-February-20-2024"]
[Site "Chess.com"]
[Date "2024.02.20"]
[Round "2"]
[White "Russian_berezka"]
[Black "ActorXu"]
[Result "0-1"]
[WhiteElo "2562"]
[BlackElo "2813"]
[TimeControl "180+1"]
[EndTime "8:20:02 PST"]
[Termination "ActorXu won by resignation"]

1. d4 {[%clk 0:03:00.9]} 1... Nf6 {[%clk 0:02:58.5]} 2. Bf4 {[%clk 0:03:01.4]}
2... c5 {[%clk 0:02:57.8]} 3. e3 {[%clk 0:03:01.1]} 3... Qb6 {[%clk 0:02:56.8]}
4. Nc3 {[%clk 0:03:01.3]} 4... d6 {[%clk 0:02:55.1]} 5. Rb1 {[%clk 0:03:00.1]}
5... a6 {[%clk 0:02:52.8]} 6. Nf3 {[%clk 0:02:59.8]} 6... g6 {[%clk 0:02:51.8]}
7. h3 {[%clk 0:02:59.2]} 7... Bg7 {[%clk 0:02:50.5]} 8. Bc4 {[%clk 0:02:59.1]}
8... O-O {[%clk 0:02:49.1]} 9. O-O {[%clk 0:02:58.7]} 9... Nbd7 {[%clk
0:02:46.9]} 10. Qe2 {[%clk 0:02:53.7]} 10... Qc7 {[%clk 0:02:45.6]} 11. a4
{[%clk 0:02:49.4]} 11... b6 {[%clk 0:02:44.2]} 12. Nd5 {[%clk 0:02:44.9]} 12...
Nxd5 {[%clk 0:02:39.3]} 13. Bxd5 {[%clk 0:02:45.8]} 13... Rb8 {[%clk 0:02:36.7]}
14. c3 {[%clk 0:02:45.7]} 14... b5 {[%clk 0:02:31.6]} 15. axb5 {[%clk
0:02:43.7]} 15... axb5 {[%clk 0:02:32]} 16. e4 {[%clk 0:02:40.9]} 16... e6
{[%clk 0:01:59.2]} 17. Bb3 {[%clk 0:02:18.7]} 17... e5 {[%clk 0:01:58]} 18. dxe5
{[%clk 0:02:14.3]} 18... dxe5 {[%clk 0:01:58.7]} 19. Bg3 {[%clk 0:02:11.5]}
19... c4 {[%clk 0:01:59.2]} 20. Bc2 {[%clk 0:02:11.9]} 20... Nc5 {[%clk
0:01:59.4]} 21. Rfd1 {[%clk 0:02:09.5]} 21... f6 {[%clk 0:01:50.4]} 22. Nh2
{[%clk 0:02:00.3]} 22... Be6 {[%clk 0:01:50.3]} 23. f3 {[%clk 0:02:00.2]} 23...
Rfd8 {[%clk 0:01:47.9]} 24. Nf1 {[%clk 0:02:00.6]} 24... Bh6 {[%clk 0:01:41.2]}
25. Bf2 {[%clk 0:01:58.3]} 25... Bf7 {[%clk 0:01:22.6]} 26. Rxd8+ {[%clk
0:01:53.9]} 26... Rxd8 {[%clk 0:01:22.2]} 27. Rd1 {[%clk 0:01:54.8]} 27... Ne6
{[%clk 0:01:22.2]} 28. Rxd8+ {[%clk 0:01:44.8]} 28... Qxd8 {[%clk 0:01:21.7]}
29. Be3 {[%clk 0:01:42.9]} 29... Bxe3+ {[%clk 0:01:13.8]} 30. Nxe3 {[%clk
0:01:34.8]} 30... Nf4 {[%clk 0:01:14.7]} 31. Qd1 {[%clk 0:01:35.3]} 31... Qxd1+
{[%clk 0:01:02.1]} 32. Nxd1 {[%clk 0:01:36.2]} 32... Be6 {[%clk 0:00:54.9]} 33.
h4 {[%clk 0:01:35.7]} 33... g5 {[%clk 0:00:52.1]} 34. hxg5 {[%clk 0:01:31.4]}
34... fxg5 {[%clk 0:00:53]} 35. g3 {[%clk 0:01:31.8]} 35... Nh5 {[%clk
0:00:52.6]} 36. Kf2 {[%clk 0:01:32.5]} 36... Kf7 {[%clk 0:00:51.1]} 37. Ne3
{[%clk 0:01:31.9]} 37... Ke7 {[%clk 0:00:48]} 38. Bd1 {[%clk 0:01:23.7]} 38...
Nf6 {[%clk 0:00:46.1]} 39. Ng2 {[%clk 0:01:19.4]} 39... Kd6 {[%clk 0:00:45.6]}
40. Ke3 {[%clk 0:01:19.3]} 40... h5 {[%clk 0:00:42.7]} 41. f4 {[%clk 0:01:12.3]}
41... gxf4+ {[%clk 0:00:39.8]} 42. gxf4 {[%clk 0:01:13.2]} 42... Bg4 {[%clk
0:00:40.4]} 43. Bf3 {[%clk 0:00:51.4]} 43... Ke6 {[%clk 0:00:36.8]} 44. f5+
{[%clk 0:00:50.9]} 44... Kf7 {[%clk 0:00:35]} 45. Nh4 {[%clk 0:00:47.3]} 45...
Nd7 {[%clk 0:00:33.1]} 46. Ng6 {[%clk 0:00:29.6]} 46... Kf6 {[%clk 0:00:32.4]}
47. Bxg4 {[%clk 0:00:18.3]} 47... hxg4 {[%clk 0:00:32.6]} 48. Nh4 {[%clk
0:00:19]} 48... Nf8 {[%clk 0:00:27.1]} 49. Kf2 {[%clk 0:00:16.8]} 49... Kg5
{[%clk 0:00:27.2]} 50. Kg3 {[%clk 0:00:17.4]} 50... Nd7 {[%clk 0:00:24.7]} 51.
Ng6 {[%clk 0:00:16.2]} 51... Nf6 {[%clk 0:00:24.3]} 52. Nxe5 {[%clk 0:00:14.5]}
52... Nxe4+ {[%clk 0:00:24.6]} 53. Kg2 {[%clk 0:00:15.3]} 53... Kxf5 {[%clk
0:00:25.2]} 54. Nc6 {[%clk 0:00:15.7]} 54... Kf4 {[%clk 0:00:18.6]} 55. Nd4
{[%clk 0:00:15.1]} 55... Nd6 {[%clk 0:00:18.9]} 56. Kf2 {[%clk 0:00:13.7]} 56...
Ke4 {[%clk 0:00:16.7]} 57. Ke2 {[%clk 0:00:12.1]} 57... g3 {[%clk 0:00:16.6]}
58. Nf3 {[%clk 0:00:12.1]} 58... Nf5 {[%clk 0:00:14.6]} 59. Ng5+ {[%clk
0:00:09.8]} 59... Kf4 {[%clk 0:00:13]} 60. Ne6+ {[%clk 0:00:10.4]} 60... Ke5
{[%clk 0:00:11.9]} 61. Ng5 {[%clk 0:00:09.3]} 61... Kf4 {[%clk 0:00:06.9]} 62.
Ne6+ {[%clk 0:00:09.6]} 62... Kg4 {[%clk 0:00:07.6]} 63. Kf1 {[%clk 0:00:06.1]}
63... Kf3 {[%clk 0:00:07.2]} 64. Kg1 {[%clk 0:00:04.4]} 64... Ke3 {[%clk
0:00:06.8]} 65. Nc7 {[%clk 0:00:05.1]} 65... Nd6 {[%clk 0:00:06.2]} 66. Kg2
{[%clk 0:00:04]} 66... Kd2 {[%clk 0:00:06.8]} 67. Kxg3 {[%clk 0:00:03.7]} 67...
Kc2 {[%clk 0:00:07.6]} 68. Kf4 {[%clk 0:00:03.7]} 68... Kxb2 {[%clk 0:00:08.3]}
69. Nd5 {[%clk 0:00:04.4]} 69... Kb3 {[%clk 0:00:06.3]} 70. Ke5 {[%clk
0:00:04.6]} 70... Nb7 {[%clk 0:00:06.2]} 71. Kd4 {[%clk 0:00:04.8]} 71... Na5
{[%clk 0:00:05.5]} 72. Nc7 {[%clk 0:00:04.4]} 72... Ka4 {[%clk 0:00:05.5]} 73.
Kc5 {[%clk 0:00:02.5]} 73... Nb3+ {[%clk 0:00:06]} 74. Kb6 {[%clk 0:00:03.1]}
74... b4 {[%clk 0:00:06.2]} 75. cxb4 {[%clk 0:00:03.7]} 75... c3 {[%clk
0:00:06.5]} 76. Nd5 {[%clk 0:00:03]} 76... c2 {[%clk 0:00:06.7]} 77. Nc3+ {[%clk
0:00:01.2]} 77... Kxb4 {[%clk 0:00:07.1]} 78. Ne2 {[%clk 0:00:01.9]} 78... Kc4
{[%clk 0:00:06.7]} 79. Ka6 {[%clk 0:00:02.4]} 79... Kd3 {[%clk 0:00:06.6]} 80.
Nf4+ {[%clk 0:00:03.3]} 80... Kd2 {[%clk 0:00:06.6]} 81. Nd3 {[%clk 0:00:01.5]}
81... Kxd3 {[%clk 0:00:06.8]} 82. Kb5 {[%clk 0:00:02.3]} 82... c1=Q {[%clk
0:00:07.2]} 83. Kb4 {[%clk 0:00:02.6]} 83... Qc5+ {[%clk 0:00:06.6]} 84. Ka4
{[%clk 0:00:02.3]} 84... Qa5+ {[%clk 0:00:06.6]} 85. Kxb3 {[%clk 0:00:02.4]}
85... Qb5+ {[%clk 0:00:07.2]} 0-1

[Event "Early-Titled-Tuesday-Blitz-February-20-2024"]
[Site "Chess.com"]
[Date "2024.02.20"]
[Round "3"]
[White "ilqar_74"]
[Black "DefiantChair"]
[Result "1-0"]
[WhiteElo "2844"]
[BlackElo "2588"]
[TimeControl "180+1"]
[EndTime "8:23:13 PST"]
[Termination "ilqar_74 won by resignation"]

1. e4 {[%clk 0:03:00.9]} 1... c5 {[%clk 0:02:57.4]} 2. Nf3 {[%clk 0:02:59.6]}
2... d6 {[%clk 0:02:57.5]} 3. d4 {[%clk 0:02:59.4]} 3... cxd4 {[%clk 0:02:58.4]}
4. Nxd4 {[%clk 0:02:55.4]} 4... Nf6 {[%clk 0:02:59]} 5. Nc3 {[%clk 0:02:55.7]}
5... a6 {[%clk 0:02:59.1]} 6. a3 {[%clk 0:02:56.2]} 6... g6 {[%clk 0:02:53.1]}
7. Be2 {[%clk 0:02:55]} 7... Bg7 {[%clk 0:02:53]} 8. Be3 {[%clk 0:02:55.6]} 8...
O-O {[%clk 0:02:53.1]} 9. Qd2 {[%clk 0:02:56.3]} 9... Nc6 {[%clk 0:02:53.4]} 10.
O-O-O {[%clk 0:02:56.4]} 10... Bd7 {[%clk 0:02:53.1]} 11. h4 {[%clk 0:02:56.4]}
11... Rc8 {[%clk 0:02:51.3]} 12. h5 {[%clk 0:02:55.3]} 12... Nxd4 {[%clk
0:02:50.2]} 13. Bxd4 {[%clk 0:02:54.8]} 13... Bc6 {[%clk 0:02:35.6]} 14. hxg6
{[%clk 0:02:53.9]} 14... fxg6 {[%clk 0:02:35.9]} 15. Bc4+ {[%clk 0:02:50]} 15...
Kh8 {[%clk 0:02:34.1]} 16. Bxf6 {[%clk 0:02:39.5]} 16... exf6 {[%clk 0:02:27.8]}
17. Rxh7+ {[%clk 0:02:34.9]} 1-0

[Event "Early-Titled-Tuesday-Blitz-February-20-2024"]
[Site "Chess.com"]
[Date "2024.02.20"]
[Round "3"]
[White "Hongjin"]
[Black "Denis_Makhnyov"]
[Result "0-1"]
[WhiteElo "2762"]
[BlackElo "3023"]
[TimeControl "180+1"]
[EndTime "8:23:16 PST"]
[Termination "Denis_Makhnyov won by resignation"]

1. e4 {[%clk 0:03:00.9]} 1... e5 {[%clk 0:02:57.1]} 2. Bc4 {[%clk 0:02:58.8]}
2... Nf6 {[%clk 0:02:56.8]} 3. Nc3 {[%clk 0:02:58.1]} 3... Bb4 {[%clk
0:02:54.3]} 4. Nge2 {[%clk 0:02:56.2]} 4... O-O {[%clk 0:02:54.3]} 5. O-O {[%clk
0:02:55.9]} 5... c6 {[%clk 0:02:53.1]} 6. d4 {[%clk 0:02:56]} 6... d6 {[%clk
0:02:53.1]} 7. Bg5 {[%clk 0:02:55.2]} 7... Nbd7 {[%clk 0:02:51.9]} 8. a3 {[%clk
0:02:49.2]} 8... Ba5 {[%clk 0:02:51.8]} 9. Qd3 {[%clk 0:02:44.4]} 9... Re8
{[%clk 0:02:46.9]} 10. f4 {[%clk 0:02:38.3]} 10... exd4 {[%clk 0:02:30.3]} 11.
Qxd4 {[%clk 0:02:27.6]} 11... Bb6 {[%clk 0:02:29.6]} 0-1

[Event "Early-Titled-Tuesday-Blitz-February-20-2024"]
[Site "Chess.com"]
[Date "2024.02.20"]
[Round "3"]
[White "Jojo_898"]
[Black "BillCoe"]
[Result "1-0"]
[WhiteElo "2453"]
[BlackElo "2123"]
[TimeControl "180+1"]
[EndTime "8:23:44 PST"]
[Termination "Jojo_898 won by resignation"]

1. e4 {[%clk 0:03:00.9]} 1... c5 {[%clk 0:02:59.6]} 2. Nf3 {[%clk 0:03:00.9]}
2... e6 {[%clk 0:03:00.2]} 3. c3 {[%clk 0:03:01.2]} 3... d5 {[%clk 0:02:59.7]}
4. exd5 {[%clk 0:03:01.3]} 4... Qxd5 {[%clk 0:03:00.5]} 5. d4 {[%clk 0:03:01.1]}
5... Nf6 {[%clk 0:03:01]} 6. Be2 {[%clk 0:03:01]} 6... Be7 {[%clk 0:03:01.2]} 7.
O-O {[%clk 0:03:01.2]} 7... O-O {[%clk 0:03:00.9]} 8. Be3 {[%clk 0:03:01.3]}
8... b6 {[%clk 0:03:00]} 9. c4 {[%clk 0:02:56.8]} 9... Qd6 {[%clk 0:02:57]} 10.
dxc5 {[%clk 0:02:53.6]} 10... bxc5 {[%clk 0:02:54.7]} 11. Nc3 {[%clk 0:02:52.7]}
11... Bb7 {[%clk 0:02:42.5]} 12. Qxd6 {[%clk 0:02:51.6]} 12... Bxd6 {[%clk
0:02:41.9]} 13. Nb5 {[%clk 0:02:52.4]} 13... Rd8 {[%clk 0:02:09.6]} 14. Rfd1
{[%clk 0:02:50.7]} 14... Ne8 {[%clk 0:02:09.3]} 15. Nxd6 {[%clk 0:02:45.5]}
15... Nxd6 {[%clk 0:01:58.8]} 16. Bxc5 {[%clk 0:02:45.7]} 1-0

[Event "Early-Titled-Tuesday-Blitz-February-20-2024"]
[Site "Chess.com"]
[Date "2024.02.20"]
[Round "3"]
[White "AlexanderKing"]
[Black "the_blue_pill"]
[Result "1-0"]
[WhiteElo "2648"]
[BlackElo "2396"]
[TimeControl "180+1"]
[EndTime "8:23:53 PST"]
[Termination "AlexanderKing won by resignation"]

1. c4 {[%clk 0:03:00.9]} 1... e6 {[%clk 0:02:59.8]} 2. Nf3 {[%clk 0:02:57.3]}
2... d5 {[%clk 0:02:59.8]} 3. g3 {[%clk 0:02:55.8]} 3... c5 {[%clk 0:02:55.6]}
4. cxd5 {[%clk 0:02:53.4]} 4... exd5 {[%clk 0:02:55.2]} 5. d4 {[%clk 0:02:53.4]}
5... Nc6 {[%clk 0:02:54.3]} 6. Bg2 {[%clk 0:02:54]} 6... cxd4 {[%clk 0:02:54.7]}
7. Nxd4 {[%clk 0:02:52.7]} 7... Bc5 {[%clk 0:02:55.3]} 8. Nxc6 {[%clk
0:02:48.9]} 8... bxc6 {[%clk 0:02:55.4]} 9. O-O {[%clk 0:02:46.6]} 9... Ne7
{[%clk 0:02:53.3]} 10. Qc2 {[%clk 0:02:33.2]} 10... Bb6 {[%clk 0:02:53]} 11. b3
{[%clk 0:02:33.1]} 11... O-O {[%clk 0:02:46.8]} 12. Bb2 {[%clk 0:02:33.1]} 12...
Re8 {[%clk 0:02:40.1]} 13. Nc3 {[%clk 0:02:27.1]} 13... Ba6 {[%clk 0:02:20.9]}
14. Rfd1 {[%clk 0:02:09.3]} 14... Nf5 {[%clk 0:02:10.2]} 15. Qxf5 {[%clk
0:02:06.7]} 1-0

[Event "Early-Titled-Tuesday-Blitz-February-20-2024"]
[Site "Chess.com"]
[Date "2024.02.20"]
[Round "3"]
[White "xakevicius91"]
[Black "inagreV"]
[Result "1-0"]
[WhiteElo "2594"]
[BlackElo "2361"]
[TimeControl "180+1"]
[EndTime "8:24:04 PST"]
[Termination "xakevicius91 won by resignation"]

1. e4 {[%clk 0:03:00.9]} 1... c5 {[%clk 0:02:59.4]} 2. Nf3 {[%clk 0:02:57.6]}
2... Nc6 {[%clk 0:02:59.4]} 3. Bc4 {[%clk 0:02:57.7]} 3... e6 {[%clk 0:02:56.2]}
4. O-O {[%clk 0:02:57.7]} 4... Nf6 {[%clk 0:02:47.2]} 5. Re1 {[%clk 0:02:57.3]}
5... Nxe4 {[%clk 0:02:43.1]} 6. Rxe4 {[%clk 0:02:58.2]} 6... d5 {[%clk
0:02:43.4]} 7. Bxd5 {[%clk 0:02:57.2]} 7... Qxd5 {[%clk 0:02:44.3]} 8. Nc3
{[%clk 0:02:57.7]} 8... Qd8 {[%clk 0:02:42.6]} 9. d4 {[%clk 0:02:58]} 9... cxd4
{[%clk 0:02:40.8]} 10. Nxd4 {[%clk 0:02:58.9]} 10... Bd7 {[%clk 0:02:39.1]} 11.
Ndb5 {[%clk 0:02:39]} 11... a6 {[%clk 0:02:05.2]} 12. Nd6+ {[%clk 0:02:37.3]}
12... Bxd6 {[%clk 0:02:05.9]} 13. Qxd6 {[%clk 0:02:37.9]} 13... Qe7 {[%clk
0:01:53.6]} 14. Bf4 {[%clk 0:02:37.8]} 14... O-O {[%clk 0:01:46.6]} 15. Rd1
{[%clk 0:02:35.3]} 15... Rfd8 {[%clk 0:01:38.4]} 16. Qxe7 {[%clk 0:02:33.8]}
16... Nxe7 {[%clk 0:01:37]} 17. Bc7 {[%clk 0:02:34.1]} 17... Bc6 {[%clk
0:01:36.4]} 1-0

[Event "Early-Titled-Tuesday-Blitz-February-20-2024"]
[Site "Chess.com"]
[Date "2024.02.20"]
[Round "3"]
[White "szachuspl"]
[Black "Fjal"]
[Result "1-0"]
[WhiteElo "2504"]
[BlackElo "2221"]
[TimeControl "180+1"]
[EndTime "8:24:12 PST"]
[Termination "szachuspl won by resignation"]

1. d4 {[%clk 0:03:00.9]} 1... d6 {[%clk 0:02:54.7]} 2. c4 {[%clk 0:03:00.8]}
2... e5 {[%clk 0:02:55.3]} 3. Nf3 {[%clk 0:03:00.9]} 3... e4 {[%clk 0:02:55.1]}
4. Nfd2 {[%clk 0:03:01.1]} 4... f5 {[%clk 0:02:56]} 5. Nc3 {[%clk 0:03:01.2]}
5... Nf6 {[%clk 0:02:55.4]} 6. Nb3 {[%clk 0:03:01.5]} 6... g6 {[%clk 0:02:54.5]}
7. Bg5 {[%clk 0:03:01.8]} 7... Bg7 {[%clk 0:02:54.7]} 8. e3 {[%clk 0:03:02.4]}
8... O-O {[%clk 0:02:52.9]} 9. Be2 {[%clk 0:03:02.6]} 9... Nbd7 {[%clk
0:02:52.8]} 10. O-O {[%clk 0:03:00.5]} 10... c6 {[%clk 0:02:53.1]} 11. f3 {[%clk
0:03:00.4]} 11... Qe8 {[%clk 0:02:53.5]} 12. fxe4 {[%clk 0:02:58.7]} 12... fxe4
{[%clk 0:02:54.1]} 13. Nd2 {[%clk 0:02:50.4]} 13... d5 {[%clk 0:02:50.5]} 14.
cxd5 {[%clk 0:02:50.5]} 14... cxd5 {[%clk 0:02:51.2]} 15. Qb3 {[%clk 0:02:50.4]}
15... Kh8 {[%clk 0:02:50.4]} 16. Nxd5 {[%clk 0:02:49.7]} 16... Nxd5 {[%clk
0:02:50]} 17. Qxd5 {[%clk 0:02:49.4]} 17... Nf6 {[%clk 0:02:43.4]} 18. Bxf6
{[%clk 0:02:41.3]} 18... Bxf6 {[%clk 0:02:44.3]} 19. Nxe4 {[%clk 0:02:40.9]}
19... Be6 {[%clk 0:02:42.8]} 20. Nxf6 {[%clk 0:02:36.4]} 20... Bxd5 {[%clk
0:02:41.6]} 21. Nxe8 {[%clk 0:02:36.8]} 21... Raxe8 {[%clk 0:02:42.1]} 22. Rxf8+
{[%clk 0:02:36.5]} 22... Rxf8 {[%clk 0:02:43]} 23. Rc1 {[%clk 0:02:29.5]} 23...
Bxa2 {[%clk 0:02:41.2]} 24. Bf3 {[%clk 0:02:26.1]} 24... b6 {[%clk 0:02:40.1]}
25. Rc7 {[%clk 0:02:25.4]} 25... a5 {[%clk 0:02:40.5]} 26. e4 {[%clk 0:02:25.6]}
26... Rd8 {[%clk 0:02:38.2]} 27. d5 {[%clk 0:02:25.6]} 27... Kg8 {[%clk
0:02:37.5]} 28. Rb7 {[%clk 0:02:24.6]} 28... Rd6 {[%clk 0:02:36]} 29. e5 {[%clk
0:02:24.6]} 29... Rxd5 {[%clk 0:02:35.4]} 30. Bxd5+ {[%clk 0:02:24.3]} 30...
Bxd5 {[%clk 0:02:36.3]} 31. Rxb6 {[%clk 0:02:25]} 31... a4 {[%clk 0:02:36.1]}
32. Kf2 {[%clk 0:02:24.1]} 32... Kf7 {[%clk 0:02:35.2]} 33. g3 {[%clk
0:02:24.6]} 33... h5 {[%clk 0:02:35.1]} 34. Ke3 {[%clk 0:02:25]} 34... Bb3
{[%clk 0:02:34.9]} 35. h4 {[%clk 0:02:25.2]} 35... Bc2 {[%clk 0:02:33.2]} 36.
Kf4 {[%clk 0:02:25.3]} 36... Ke7 {[%clk 0:02:33.7]} 37. Kg5 {[%clk 0:02:25.5]}
37... Kd7 {[%clk 0:02:33.9]} 38. Kf6 {[%clk 0:02:24.5]} 38... Kc7 {[%clk
0:02:33.1]} 39. Rb4 {[%clk 0:02:24.7]} 39... Kd7 {[%clk 0:02:31.7]} 40. e6+
{[%clk 0:02:24.8]} 40... Kd6 {[%clk 0:02:31.6]} 41. e7 {[%clk 0:02:24.6]} 1-0

[Event "Early-Titled-Tuesday-Blitz-February-20-2024"]
[Site "Chess.com"]
[Date "2024.02.20"]
[Round "3"]
[White "Ezov"]
[Black "Cheer_Down"]
[Result "0-1"]
[WhiteElo "2166"]
[BlackElo "2402"]
[TimeControl "180+1"]
[EndTime "8:24:23 PST"]
[Termination "Cheer_Down won by checkmate"]

1. d4 {[%clk 0:03:00.3]} 1... Nf6 {[%clk 0:02:59.4]} 2. Nc3 {[%clk 0:02:58.5]}
2... d5 {[%clk 0:02:58.9]} 3. Bf4 {[%clk 0:02:57.2]} 3... c5 {[%clk 0:02:58.4]}
4. e3 {[%clk 0:02:55.6]} 4... cxd4 {[%clk 0:02:57.9]} 5. exd4 {[%clk 0:02:49.7]}
5... Bg4 {[%clk 0:02:56.6]} 6. f3 {[%clk 0:02:47.9]} 6... Bd7 {[%clk 0:02:56.2]}
7. Qd2 {[%clk 0:02:42.9]} 7... Nc6 {[%clk 0:02:54]} 8. O-O-O {[%clk 0:02:36.9]}
8... e6 {[%clk 0:02:51.7]} 9. g4 {[%clk 0:02:35.9]} 9... Bb4 {[%clk 0:02:45.6]}
10. a3 {[%clk 0:02:33]} 10... Ba5 {[%clk 0:02:43.2]} 11. h4 {[%clk 0:02:29.7]}
11... Rc8 {[%clk 0:02:36.3]} 12. h5 {[%clk 0:02:28.4]} 12... h6 {[%clk
0:02:35.3]} 13. Bb5 {[%clk 0:02:12.4]} 13... Qb6 {[%clk 0:02:28.5]} 14. b4
{[%clk 0:02:08.8]} 14... Nxb4 {[%clk 0:02:27.5]} 15. Bxd7+ {[%clk 0:02:07.8]}
15... Kxd7 {[%clk 0:02:25.5]} 16. axb4 {[%clk 0:01:58.2]} 16... Qxb4 {[%clk
0:02:25.1]} 17. Nge2 {[%clk 0:01:56.5]} 17... Qa3+ {[%clk 0:02:21.5]} 18. Kb1
{[%clk 0:01:55.2]} 18... Rxc3 {[%clk 0:02:08.2]} 19. Nxc3 {[%clk 0:01:51.7]}
19... Bxc3 {[%clk 0:02:07.2]} 20. Qc1 {[%clk 0:01:51.3]} 20... Qa1# {[%clk
0:02:07.3]} 0-1